bitfinex/quotes_BTCUSD_20250313
["timestamp","ask_amount","ask_price","bid_price","bid_amount"]
[1741878314171,0.04597419,82156.0,82155.0,0.0001693]
[1741878315025,0.51409082,82156.0,82155.0,0.0001693]
[1741878315201,0.51287476,82156.0,82155.0,0.0001693]
[1741878315622,0.51187476,82156.0,82155.0,0.0001693]
[1741878315830,0.51087476,82156.0,82155.0,0.0001693]
[1741878316244,0.51087476,82156.0,82155.0,3e-07]
[1741878316447,0.51287476,82156.0,82155.0,3e-07]
[1741878317317,0.51387476,82156.0,82155.0,3e-07]
[1741878317525,0.24356,82115.0,82112.0,0.000122]
[1741878317728,0.255698,82128.0,82119.0,0.012177]
[1741878317925,0.3,82127.0,82125.0,0.255706]
[1741878318127,0.3,82127.0,82117.0,0.012177]
[1741878318484,0.543525,82127.0,82117.0,0.255729]
[1741878318687,0.012178,82114.0,82111.0,0.0008]
[1741878318815,0.012177,82116.0,82112.0,0.11982299]
[1741878318816,0.255738,82115.0,82112.0,0.11982299]
[1741878319474,0.02253032,82114.0,82112.0,0.11982299]
[1741878319690,0.02253032,82114.0,82113.0,0.14641984]
[1741878319897,0.03380319,82114.0,82113.0,0.14641984]
[1741878320775,0.01127287,82114.0,82113.0,0.14641984]
[1741878321746,0.243539,82123.0,82117.0,0.012177]
[1741878321942,0.012176,82124.0,82119.0,0.012177]
[1741878322145,0.012176,82124.0,82120.0,0.11970099]
[1741878322342,0.243528,82126.0,82120.0,0.13087799]
[1741878322566,0.0234574,82135.0,82123.0,0.012176]
[1741878322765,0.243508,82133.0,82128.0,0.012176]
[1741878322965,0.012175,82129.0,82124.0,0.243534]
[1741878323199,0.255668,82138.0,82112.0,0.000122]
[1741878323200,0.012172,82154.0,82148.0,0.012173]
[1741878323408,0.10704378,82156.0,82155.0,0.012172]
[1741878323618,0.012167,82188.0,82155.0,0.55444184]
[1741878323820,0.243309,82200.0,82169.0,0.27011085]
[1741878324024,0.0125046,82194.0,82169.0,0.54057184]
[1741878324233,6e-07,82170.0,82169.0,0.85191692]
[1741878324458,1e-06,82181.0,82180.0,0.255536]
[1741878324661,1e-06,82181.0,82180.0,0.38977784]
[1741878325196,1e-06,82181.0,82180.0,1.61970099]
[1741878325575,0.012169,82181.0,82180.0,1.5]
[1741878325783,0.012169,82181.0,82177.0,0.15188]
[1741878326013,0.012172,82153.0,82152.0,0.15192]
[1741878326216,0.08906022,82180.0,82152.0,0.15192]
[1741878326217,0.243379,82177.0,82166.0,0.01217]
[1741878326418,0.243382,82176.0,82167.0,0.243405]
[1741878326613,0.255555,82174.0,82167.0,0.255575]
[1741878326841,0.012169,82171.0,82162.0,0.012171]
[1741878327047,0.255567,82170.0,82164.0,0.01217]
[1741878327245,0.01217,82166.0,82163.0,0.11970099]
[1741878327451,0.012172,82154.0,82147.0,0.012173]
[1741878327650,0.243443,82155.0,82149.0,0.255631]
[1741878327873,0.012171,82160.0,82152.0,0.243451]
[1741878328080,0.255586,82164.0,82154.0,0.255616]
[1741878328341,0.01217,82168.0,82160.0,0.012171]
[1741878328546,0.01217,82165.0,82159.0,0.255601]
[1741878328744,0.012169,82170.0,82163.0,0.255586]
[1741878328877,0.0312359,82169.0,82163.0,0.255586]
[1741878329077,0.01217,82168.0,82162.0,0.001]
[1741878329278,0.01217,82164.0,82162.0,0.001]
[1741878329599,0.25562,82153.0,82146.0,0.255641]
[1741878329807,0.255611,82156.0,82148.0,0.012173]
[1741878330001,0.012171,82162.0,82151.0,0.012172]
[1741878330209,0.012171,82161.0,82150.0,0.243457]
[1741878330410,0.243471,82146.0,82137.0,0.77288]
[1741878330733,0.255666,82138.0,82137.0,0.77288]
[1741878330944,0.255666,82138.0,82134.0,0.15196]
[1741878330945,0.243501,82135.0,82134.0,0.15196]
[1741878331148,0.255676,82135.0,82134.0,0.15196]
[1741878331351,0.012177,82122.0,82117.0,0.152]
[1741878331567,0.012176,82128.0,82113.0,0.0001693]
[1741878331568,0.555741,82114.0,82113.0,0.0001693]
[1741878331714,0.3,82114.0,82113.0,0.0001693]
[1741878331927,0.01995937,82114.0,82113.0,0.0001693]
[1741878332655,0.11508893,82114.0,82113.0,0.0001693]
[1741878332855,0.13759161,82114.0,82113.0,0.0001693]
[1741878333062,0.13759161,82114.0,82113.0,3e-07]
[1741878333063,0.16167105,82114.0,82113.0,3e-07]
[1741878333291,0.012178,82109.0,82108.0,5e-07]
[1741878333447,0.3,82106.0,82104.0,3e-07]
[1741878333643,0.243584,82107.0,82104.0,3e-07]
[1741878333644,0.65152894,82105.0,82104.0,3e-07]
[1741878333870,0.65152894,82105.0,82071.0,0.0008]
[1741878333871,0.65152894,82105.0,82025.0,0.0473]
[1741878333872,0.012186,82061.0,82025.0,0.0473]
[1741878334069,0.012185,82064.0,82055.0,0.243738]
[1741878334304,0.012185,82064.0,82054.0,0.0073487]
[1741878334305,0.255911,82060.0,82054.0,0.0073487]
[1741878334476,0.012185,82063.0,82054.0,0.0073487]
[1741878334477,0.243721,82061.0,82054.0,0.0073487]
[1741878334703,0.012186,82061.0,82054.0,0.0073487]
[1741878334899,0.255903,82062.0,82055.0,0.012186]
[1741878334900,0.012185,82062.0,82055.0,0.012186]
[1741878335104,0.012185,82063.0,82057.0,0.012186]
[1741878335303,0.012185,82063.0,82055.0,1.755924]
[1741878335304,0.012185,82064.0,82056.0,0.243735]
[1741878335703,0.0027116,82063.0,82061.0,0.012186]
[1741878335898,0.0027116,82063.0,82059.0,0.243727]
[1741878336106,0.01908972,82063.0,82058.0,0.012186]
[1741878336312,0.01908972,82063.0,82055.0,0.255923]
[1741878336313,0.012185,82062.0,82055.0,0.255923]
[1741878336503,0.012186,82061.0,82055.0,0.255923]
[1741878336918,0.255908,82061.0,82054.0,0.0195357]
[1741878337091,0.012186,82055.0,82054.0,0.0073487]
[1741878337269,0.01659938,82060.0,82054.0,0.0073487]
[1741878337473,0.3,82064.0,82057.0,0.255917]
[1741878337679,0.00441579,82059.0,82057.0,0.255917]
[1741878338007,0.25472422,82072.0,82062.0,0.012185]
[1741878338298,0.012184,82069.0,82062.0,0.012185]
[1741878338503,0.25472422,82072.0,82054.0,0.0073487]
[1741878338504,0.012186,82061.0,82054.0,0.0073487]
[1741878338719,0.243738,82055.0,82054.0,0.0073487]
[1741878338843,0.255924,82055.0,82054.0,0.0073487]
[1741878339050,0.26303715,82055.0,82054.0,0.0073487]
[1741878339546,0.66132895,82055.0,82054.0,0.0073487]
[1741878340360,0.66132895,82055.0,82048.0,1e-06]
[1741878340361,0.255943,82049.0,82048.0,1e-06]
[1741878340569,0.6546804,82049.0,82048.0,1e-06]
[1741878341193,0.67377665,82049.0,82048.0,1e-06]
[1741878341393,0.67877665,82049.0,82048.0,1e-06]
[1741878341528,0.69117542,82049.0,82048.0,1e-06]
[1741878341727,0.555997,82032.0,82031.0,0.0008]
[1741878341912,0.65599729,82032.0,82031.0,0.0008]
[1741878342574,0.67764294,82032.0,82031.0,0.0008]
[1741878342915,0.02164565,82032.0,82031.0,0.01299]
[1741878343116,0.01219,82032.0,82031.0,0.0008]
[1741878343545,0.01901494,82032.0,82031.0,0.0008]
[1741878343716,0.00682494,82032.0,82031.0,0.0008]
[1741878343919,0.00682494,82032.0,82031.0,0.01299]
[1741878344221,0.01219,82032.0,82031.0,0.0008]
[1741878344672,0.01902474,82032.0,82031.0,0.0008]
[1741878345102,0.01902474,82032.0,82031.0,1.5008]
[1741878345924,0.00783474,82032.0,82031.0,1.5008]
[1741878346128,0.43912229,82032.0,82031.0,1.5008]
[1741878346330,0.43228755,82032.0,82031.0,0.0008]
[1741878346533,0.43587798,82032.0,82031.0,0.0008]
[1741878347277,0.41678072,82032.0,82031.0,0.0008]
[1741878347600,0.42839062,82032.0,82031.0,0.0008]
[1741878348049,0.43339062,82032.0,82031.0,0.0008]
[1741878348196,0.43339062,82032.0,82031.0,1e-06]
[1741878348396,0.556,82031.0,82030.0,3e-07]
[1741878348602,0.66067478,82031.0,82030.0,3e-07]
[1741878349050,0.66067478,82031.0,81991.0,0.0008]
[1741878349051,0.243926,81992.0,81991.0,0.0008]
[1741878349354,1.219276,82016.0,81991.0,0.0008]
[1741878349355,0.012194,82001.0,81993.0,0.012196]
[1741878349562,0.012195,81995.0,81991.0,0.0008]
[1741878349763,0.012196,81993.0,81991.0,0.0008]
[1741878350053,0.25788403,81992.0,81991.0,0.0008]
[1741878350283,0.00176203,81992.0,81991.0,0.0008]
[1741878350464,0.01395803,81992.0,81991.0,0.0008]
[1741878350659,0.01517409,81992.0,81991.0,0.0008]
[1741878350862,0.01395803,81992.0,81991.0,0.0008]
[1741878351086,0.41814798,81992.0,81991.0,0.0008]
[1741878351284,0.41693192,81992.0,81991.0,0.0008]
[1741878351514,0.41693192,81992.0,81991.0,1e-06]
[1741878352688,0.41893192,81992.0,81991.0,1e-06]
[1741878352908,0.41693192,81992.0,81991.0,1e-06]
[1741878353317,0.41793192,81992.0,81991.0,1e-06]
[1741878354263,0.556144,81985.0,81984.0,1e-06]
[1741878354471,0.256181,81973.0,81971.0,0.0001692]
[1741878354647,0.317199,81972.0,81971.0,9e-07]
[1741878354849,0.42166077,81972.0,81971.0,9e-07]
[1741878355073,0.49014857,81972.0,81971.0,9e-07]
[1741878355688,0.55624,81954.0,81953.0,0.035]
[1741878355905,0.81712148,81954.0,81953.0,0.035]
[1741878356129,0.81881551,81954.0,81953.0,0.035]
[1741878356289,0.83835636,81954.0,81953.0,1e-08]
[1741878356489,0.96952504,81954.0,81953.0,1e-08]
[1741878357092,0.244048,81951.0,81938.0,0.02333333]
[1741878357322,0.66735526,81949.0,81938.0,0.02333333]
[1741878357640,0.66892713,81949.0,81938.0,0.02333333]
[1741878357833,0.68804636,81949.0,81938.0,0.02333333]
[1741878358625,0.80800725,81949.0,81938.0,0.02333333]
[1741878358832,0.69275761,81949.0,81938.0,0.02333333]
[1741878359042,0.69575761,81949.0,81938.0,0.02333333]
[1741878359818,0.69075761,81949.0,81938.0,0.02333333]
[1741878359954,0.68775761,81949.0,81948.0,2e-07]
[1741878360154,0.556288,81939.0,81938.0,5.3e-07]
[1741878360471,0.75583195,81939.0,81938.0,5.3e-07]
[1741878360830,0.8203728,81939.0,81938.0,5.3e-07]
[1741878361017,0.83949662,81939.0,81938.0,5.3e-07]
[1741878361227,0.556362,81915.0,81914.0,0.00194785]
[1741878361416,0.66506821,81915.0,81914.0,0.00194785]
[1741878361628,0.66979201,81915.0,81914.0,0.00194785]
[1741878362066,0.012209,81905.0,81896.0,0.01221]
[1741878362279,0.27965274,81915.0,81890.0,0.0125179]
[1741878362280,0.012211,81891.0,81890.0,0.0125179]
[1741878362481,0.312211,81891.0,81890.0,0.0125179]
[1741878362691,0.00148586,81891.0,81890.0,0.0247289]
[1741878363101,0.01221,81899.0,81893.0,0.256432]
[1741878363322,0.012206,81924.0,81914.0,0.012207]
[1741878363544,1.141,81945.0,81914.0,0.012207]
[1741878363545,0.036707,81954.0,81934.0,0.2563]
[1741878363743,0.0757,81956.0,81925.0,0.012206]
[1741878363744,0.012204,81937.0,81925.0,0.012206]
[1741878363949,0.0757,81956.0,81911.0,0.012208]
[1741878363950,0.012207,81920.0,81911.0,0.012208]
[1741878364156,0.012203,81942.0,81932.0,0.012205]
[1741878364359,0.01129987,81933.0,81931.0,0.012205]
[1741878364558,0.01129987,81933.0,81926.0,0.012206]
[1741878364559,0.012205,81933.0,81926.0,0.012206]
[1741878364710,0.012205,81929.0,81922.0,0.401934]
[1741878364975,0.244113,81929.0,81915.0,0.242153]
[1741878365230,0.256318,81929.0,81928.0,1.5]
[1741878365459,0.256318,81929.0,81903.0,0.256397]
[1741878365460,0.256379,81910.0,81903.0,0.256397]
[1741878365672,0.012208,81911.0,81905.0,0.244185]
[1741878365966,0.00160433,81909.0,81906.0,1.5]
[1741878366176,0.01381233,81909.0,81906.0,1.5]
[1741878366369,0.01381233,81909.0,81906.0,1.512209]
[1741878366370,0.00160433,81909.0,81906.0,1.512209]
[1741878366586,0.00160433,81909.0,81906.0,1.5]
[1741878366795,0.012208,81908.0,81906.0,1.5]
[1741878367014,0.24578034,81907.0,81906.0,1.5]
[1741878367212,0.012209,81906.0,81905.0,0.15768]
[1741878367414,0.00160134,81907.0,81905.0,0.15768]
[1741878367619,0.24578035,81906.0,81905.0,0.15768]
[1741878367828,0.24578035,81906.0,81894.0,0.01221]
[1741878367829,0.256402,81903.0,81894.0,0.01221]
[1741878368036,0.012209,81903.0,81897.0,0.414057]
[1741878368246,0.00159688,81902.0,81897.0,0.256417]
[1741878368460,0.00159688,81902.0,81895.0,0.244215]
[1741878368461,0.012207,81919.0,81913.0,0.24416]
[1741878368664,0.012208,81909.0,81906.0,0.003]
[1741878368882,0.001,81909.0,81906.0,0.015209]
[1741878369079,0.256377,81911.0,81906.0,0.012209]
[1741878369301,0.256377,81911.0,81903.0,0.012209]
[1741878369530,0.256369,81913.0,81907.0,0.256386]
[1741878369753,0.244146,81919.0,81914.0,0.012207]
[1741878369754,0.012207,81919.0,81914.0,0.012207]
[1741878369961,0.24417,81910.0,81904.0,0.244186]
[1741878370169,0.24417,81910.0,81906.0,0.003]
[1741878370170,0.244176,81908.0,81906.0,0.003]
[1741878370347,0.012208,81907.0,81906.0,0.003]
[1741878370753,0.42272645,81907.0,81906.0,0.003]
[1741878371007,0.42151039,81907.0,81906.0,0.003]
[1741878371224,0.012207,81919.0,81906.0,0.003]
[1741878371445,0.244189,81904.0,81899.0,0.01221]
[1741878371657,0.012209,81902.0,81893.0,0.012211]
[1741878371873,0.01221,81900.0,81895.0,0.256422]
[1741878372097,0.244175,81909.0,81895.0,0.402172]
[1741878372325,0.01912795,81900.0,81898.0,0.01221]
[1741878372533,0.01912795,81900.0,81899.0,0.256413]
[1741878373207,0.01912795,81900.0,81895.0,0.403172]
[1741878373426,0.26332795,81900.0,81895.0,0.402172]
[1741878373692,0.01912795,81900.0,81897.0,0.244208]
[1741878373928,0.01673507,81899.0,81898.0,0.256416]
[1741878374356,0.2566906,81919.0,81913.0,0.256367]
[1741878374568,0.012208,81911.0,81900.0,0.2442]
[1741878374783,0.25638,81910.0,81905.0,0.256391]
[1741878374998,0.01674198,81909.0,81908.0,0.012208]
[1741878375206,0.0003396,81919.0,81918.0,0.012207]
[1741878375408,0.01704087,81919.0,81918.0,0.012207]
[1741878375614,0.012207,81915.0,81909.0,0.244173]
[1741878375826,0.012208,81907.0,81894.0,0.244217]
[1741878376064,0.256403,81903.0,81898.0,0.256413]
[1741878376241,0.01221,81900.0,81898.0,0.1578]
[1741878376420,0.01221,81900.0,81890.0,0.0247289]
[1741878376632,0.256416,81898.0,81892.0,0.012211]
[1741878376854,0.01679196,81899.0,81896.0,0.01221]
[1741878377076,0.01221,81898.0,81892.0,0.012211]
[1741878377330,0.256424,81896.0,81891.0,0.012211]
[1741878377495,0.01221,81894.0,81888.0,0.244235]
[1741878377719,0.00153143,81895.0,81890.0,0.0247289]
[1741878378055,0.00152843,81894.0,81893.0,0.256432]
[1741878378198,0.00152843,81894.0,81893.0,0.37613299]
[1741878378399,0.01912765,81897.0,81896.0,0.256422]
[1741878378593,0.01912765,81897.0,81896.0,0.37612299]
[1741878378841,0.244219,81894.0,81890.0,0.0125179]
[1741878379043,0.01912765,81897.0,81895.0,0.256422]
[1741878379418,0.01912765,81897.0,81896.0,0.01221]
[1741878379823,0.01912765,81897.0,81896.0,0.01721]
[1741878380049,0.01912765,81897.0,81896.0,0.01221]
[1741878380667,0.01170398,81915.0,81896.0,0.01221]
[1741878380668,0.012205,81927.0,81918.0,0.256353]
[1741878380968,0.38748699,81930.0,81918.0,0.256353]
[1741878380969,0.012205,81930.0,81918.0,0.012207]
[1741878381228,0.1572,81946.0,81918.0,0.256353]
[1741878381454,0.0194632,81919.0,81918.0,0.244146]
[1741878381659,0.012207,81915.0,81906.0,0.15716]
[1741878381856,0.244148,81918.0,81910.0,0.012208]
[1741878382058,0.0316702,81919.0,81918.0,0.001]
[1741878382679,0.14129442,81919.0,81918.0,0.004]
[1741878382854,0.012208,81908.0,81902.0,0.012209]
[1741878383063,0.256394,81906.0,81901.0,0.401076]
[1741878383260,0.012209,81906.0,81901.0,0.413285]
[1741878383458,0.012208,81908.0,81902.0,0.256401]
[1741878383689,0.256386,81908.0,81903.0,0.244189]
[1741878383888,0.244181,81907.0,81902.0,0.256401]
[1741878384094,0.256386,81908.0,81902.0,0.256401]
[1741878384300,0.244171,81910.0,81905.0,0.244185]
[1741878384465,0.256387,81907.0,81902.0,0.012209]
[1741878384662,0.24419,81904.0,81901.0,0.15688]
[1741878384875,0.012208,81908.0,81904.0,0.244186]
[1741878385074,0.244152,81916.0,81907.0,0.012208]
[1741878385293,0.244166,81912.0,81907.0,0.256385]
[1741878385540,0.244177,81908.0,81902.0,0.2574]
[1741878385830,0.012209,81906.0,81902.0,0.001]
[1741878385970,0.012208,81908.0,81902.0,0.001]
[1741878386176,0.012208,81908.0,81901.0,0.15688]
[1741878386380,0.244182,81906.0,81901.0,0.169089]
[1741878386593,0.012208,81907.0,81901.0,0.413284]
[1741878386972,0.244188,81904.0,81901.0,0.15688]
[1741878387180,0.01221,81900.0,81899.0,0.02]
[1741878388485,0.13475661,81900.0,81899.0,0.02]
[1741878388768,0.13475661,81900.0,81899.0,0.024]
[1741878388769,0.13354055,81900.0,81899.0,0.024]
[1741878388980,0.28314106,81900.0,81899.0,0.024]
[1741878389382,0.28314106,81900.0,81899.0,0.02]
[1741878389715,0.77477972,81900.0,81899.0,3.7e-07]
[1741878389916,0.87672057,81900.0,81899.0,3.7e-07]
[1741878390123,0.91814017,81900.0,81899.0,3.7e-07]
[1741878390324,0.556453,81886.0,81885.0,9e-07]
[1741878390554,0.556453,81886.0,81846.0,0.012218]
[1741878390555,0.3,81882.0,81811.0,0.02744788]
[1741878390763,0.012218,81844.0,81826.0,0.012221]
[1741878390930,0.00121606,81843.0,81842.0,0.256591]
[1741878391114,0.012215,81863.0,81844.0,0.256584]
[1741878391332,0.012215,81862.0,81836.0,0.012219]
[1741878391553,0.70254075,81870.0,81831.0,0.0008]
[1741878391554,0.012217,81853.0,81831.0,0.0008]
[1741878391749,0.11411339,81852.0,81835.0,0.012219]
[1741878391959,0.3,81869.0,81859.0,0.244322]
[1741878392264,0.11368764,81868.0,81854.0,0.244337]
[1741878392472,0.012216,81855.0,81840.0,0.012218]
[1741878392675,0.11370286,81854.0,81843.0,0.24437]
[1741878392893,0.0009,81853.0,81848.0,0.244352]
[1741878393136,0.11347896,81852.0,81846.0,0.24436]
[1741878393337,0.11347896,81852.0,81834.0,0.256615]
[1741878393338,0.012218,81846.0,81831.0,0.245206]
[1741878393538,0.11437468,81845.0,81837.0,0.244385]
[1741878393757,0.11437468,81845.0,81843.0,0.244367]
[1741878393975,0.1592,81856.0,81855.0,0.244334]
[1741878394192,0.11310582,81856.0,81853.0,0.244338]
[1741878394395,0.11318043,81855.0,81850.0,0.244346]
[1741878394805,0.11318043,81855.0,81852.0,0.244341]
[1741878395021,0.244275,81875.0,81851.0,0.244343]
[1741878395022,0.16036,81867.0,81863.0,0.244309]
[1741878395221,0.11239697,81866.0,81863.0,0.244309]
[1741878395630,0.00141475,81865.0,81863.0,0.244309]
[1741878395833,0.11247158,81864.0,81863.0,0.244309]
[1741878395960,0.11247158,81864.0,81859.0,0.24432]
[1741878396441,0.012217,81850.0,81840.0,0.244379]
[1741878396626,0.244381,81840.0,81827.0,0.01222]
[1741878396831,0.00256474,81839.0,81833.0,0.244399]
[1741878397141,0.00134868,81839.0,81838.0,0.012219]
[1741878397539,0.11388946,81849.0,81841.0,0.244376]
[1741878397739,0.244361,81846.0,81840.0,0.244379]
[1741878397948,0.012217,81848.0,81840.0,0.244379]
[1741878397949,0.012217,81847.0,81840.0,0.244379]
[1741878398152,0.0519208,81848.0,81847.0,0.256575]
[1741878398361,0.0519208,81848.0,81845.0,0.244364]
[1741878398558,0.0519208,81848.0,81845.0,0.256582]
[1741878398559,0.04159421,81848.0,81845.0,0.256582]
[1741878398763,0.0172087,81847.0,81846.0,0.012218]
[1741878399159,0.012218,81842.0,81833.0,0.01222]
[1741878399436,0.01719828,81841.0,81829.0,0.244409]
[1741878399637,0.01719828,81841.0,81837.0,0.0001699]
[1741878399638,0.26157728,81841.0,81837.0,0.0001699]
[1741878399837,0.012219,81838.0,81837.0,0.0001699]
[1741878400139,0.13934267,81838.0,81837.0,0.0001699]
[1741878400342,0.13934267,81838.0,81824.0,4e-07]
[1741878400343,0.012221,81825.0,81824.0,4e-07]
[1741878400579,0.37206501,81825.0,81824.0,4e-07]
[1741878401216,0.43584913,81825.0,81824.0,4e-07]
[1741878401419,0.73584913,81825.0,81824.0,4e-07]
[1741878401724,0.6962139,81825.0,81824.0,4e-07]
[1741878401951,0.6992139,81825.0,81824.0,4e-07]
[1741878402288,0.556681,81813.0,81809.0,0.0001698]
[1741878402495,0.556681,81813.0,81794.0,8e-05]
[1741878402496,0.256719,81801.0,81800.0,2.8e-07]
[1741878402723,0.256719,81801.0,81794.0,2.8e-07]
[1741878402724,0.256738,81795.0,81794.0,2.8e-07]
[1741878402899,0.37417502,81795.0,81794.0,2.8e-07]
[1741878403095,0.37541003,81795.0,81794.0,2.8e-07]
[1741878403669,0.244573,81775.0,81768.0,0.23793299]
[1741878403882,0.012228,81779.0,81773.0,0.012228]
[1741878404025,0.01571929,81774.0,81768.0,0.012229]
[1741878404238,0.01571929,81774.0,81766.0,0.244599]
[1741878404239,0.01571929,81774.0,81773.0,0.012228]
[1741878404419,0.011502,81787.0,81783.0,0.012227]
[1741878404623,0.012224,81802.0,81788.0,0.012226]
[1741878404830,0.256728,81799.0,81793.0,0.012225]
[1741878405030,0.012222,81816.0,81809.0,0.012223]
[1741878405264,0.077,81825.0,81794.0,1.5]
[1741878405265,0.244442,81819.0,81794.0,1.5]
[1741878405457,0.012222,81818.0,81811.0,0.012223]
[1741878405680,0.11676455,81819.0,81812.0,0.256685]
[1741878405880,0.11676455,81819.0,81807.0,0.012223]
[1741878405881,0.244447,81817.0,81811.0,0.012223]
[1741878406060,0.244447,81817.0,81807.0,0.012223]
[1741878406061,0.244466,81811.0,81807.0,0.012223]
[1741878406270,0.256689,81811.0,81806.0,0.244479]
[1741878406470,0.012224,81805.0,81794.0,0.244516]
[1741878406675,0.012224,81804.0,81797.0,0.256731]
[1741878407007,0.00121918,81804.0,81802.0,0.012224]
[1741878407133,0.00121918,81804.0,81803.0,0.012224]
[1741878407341,0.01914924,81810.0,81809.0,0.256694]
[1741878407757,0.01914924,81810.0,81805.0,0.012224]
[1741878407961,0.27584124,81810.0,81799.0,0.256723]
[1741878408162,0.012224,81804.0,81796.0,0.24451]
[1741878408407,0.012224,81804.0,81792.0,0.012226]
[1741878408408,0.256726,81799.0,81792.0,0.244521]
[1741878408714,0.0012132,81798.0,81794.0,0.012225]
[1741878408885,0.0012132,81798.0,81797.0,0.012225]
[1741878409088,0.244482,81806.0,81798.0,0.244504]
[1741878409425,0.02955961,81798.0,81797.0,0.256729]
[1741878409554,0.01914992,81798.0,81797.0,0.012225]
[1741878409756,0.01914992,81798.0,81797.0,0.244507]
[1741878409953,0.03077686,81798.0,81796.0,0.012225]
[1741878410396,0.01914992,81798.0,81797.0,0.13192599]
[1741878410589,0.11979008,81821.0,81814.0,0.012222]
[1741878410760,0.11979008,81821.0,81815.0,0.256675]
[1741878410761,0.012221,81821.0,81815.0,0.256675]
[1741878410936,0.01162961,81818.0,81817.0,0.244447]
[1741878411136,0.01134877,81823.0,81820.0,0.244438]
[1741878411399,0.01914751,81826.0,81825.0,0.012221]
[1741878411607,0.01914751,81826.0,81825.0,0.256644]
[1741878411781,0.03136851,81826.0,81819.0,0.012222]
[1741878411988,0.012223,81808.0,81802.0,0.012224]
[1741878412191,0.256727,81799.0,81796.0,0.16632]
[1741878412394,0.244427,81824.0,81808.0,0.012223]
[1741878412739,0.012222,81818.0,81813.0,0.012222]
[1741878412951,0.012222,81816.0,81808.0,0.012223]
[1741878413156,0.012224,81806.0,81800.0,0.012224]
[1741878413371,0.012224,81806.0,81802.0,0.244492]
[1741878413577,0.012224,81801.0,81790.0,0.057596]
[1741878413726,0.012223,81811.0,81804.0,0.25671]
[1741878413928,0.012224,81804.0,81798.0,0.244502]
[1741878414181,0.244493,81802.0,81795.0,0.244513]
[1741878414358,0.012225,81797.0,81792.0,0.012226]
[1741878414513,0.256715,81803.0,81796.0,0.244508]
[1741878414910,0.244506,81798.0,81794.0,1.5]
[1741878415115,0.256731,81798.0,81794.0,1.5]
[1741878415349,0.012225,81799.0,81794.0,1.5]
[1741878415554,0.244494,81802.0,81797.0,0.244505]
[1741878415752,0.012224,81803.0,81798.0,0.012225]
[1741878415953,0.244505,81798.0,81794.0,1.5]
[1741878416155,0.244499,81800.0,81794.0,1.5]
[1741878416355,0.012225,81799.0,81795.0,0.244513]
[1741878416567,0.00191192,81799.0,81795.0,0.244513]
[1741878416840,0.0026435,81799.0,81798.0,0.012225]
[1741878417172,0.012222,81814.0,81809.0,0.012223]
[1741878417414,0.012224,81801.0,81791.0,0.244523]
[1741878417668,0.012225,81795.0,81794.0,1.502]
[1741878417826,0.244504,81798.0,81794.0,1.502]
[1741878418143,0.00964269,81797.0,81794.0,1.75874]
[1741878418383,0.00964269,81797.0,81795.0,0.256736]
[1741878418587,0.012224,81803.0,81796.0,0.256735]
[1741878418792,0.012221,81821.0,81815.0,0.244452]
[1741878419014,0.1164657,81826.0,81822.0,0.012221]
[1741878419233,0.4153,81837.0,81797.0,0.11970099]
[1741878419234,0.01222,81831.0,81823.0,0.244429]
[1741878419410,0.01222,81831.0,81818.0,0.012222]
[1741878419411,0.01914666,81823.0,81819.0,0.012222]
[1741878419608,0.01914666,81823.0,81822.0,0.012221]
[1741878419823,0.01914666,81823.0,81821.0,0.244436]
[1741878420028,0.01914666,81823.0,81819.0,1.756664]
[1741878420214,0.012223,81811.0,81804.0,0.244485]
[1741878420428,0.256729,81798.0,81797.0,0.77612]
[1741878420778,0.00259494,81798.0,81795.0,0.244513]
[1741878420982,0.01914973,81801.0,81796.0,0.256733]
[1741878421191,0.01914973,81801.0,81799.0,0.012225]
[1741878421386,0.00267209,81800.0,81797.0,0.244506]
[1741878421813,0.00267209,81800.0,81798.0,0.256727]
[1741878421968,0.01914973,81801.0,81796.0,0.012225]
[1741878422177,0.012225,81799.0,81794.0,0.012225]
[1741878422394,0.25931602,81798.0,81792.0,0.256746]
[1741878422615,0.256735,81797.0,81792.0,0.256746]
[1741878422817,0.012225,81798.0,81797.0,0.002]
[1741878423021,0.256729,81798.0,81793.0,0.256742]
[1741878423227,0.256743,81794.0,81790.0,0.00017]
[1741878423439,0.256751,81791.0,81790.0,0.00017]
[1741878424188,0.85472,81824.0,81790.0,0.00017]
[1741878424395,0.01222,81831.0,81821.0,0.012221]
[1741878424595,0.16528,81841.0,81834.0,0.012219]
[1741878424798,0.244422,81826.0,81804.0,0.01454085]
[1741878425004,0.012221,81820.0,81805.0,1.5]
[1741878425205,0.012221,81822.0,81809.0,0.012223]
[1741878425414,0.256662,81820.0,81814.0,0.012222]
[1741878425614,0.244451,81816.0,81811.0,0.012223]
[1741878425815,0.00492633,81815.0,81814.0,0.012222]
[1741878426015,0.244454,81815.0,81809.0,0.012223]
[1741878426240,0.01715213,81814.0,81807.0,0.256699]
[1741878426494,0.01715213,81814.0,81797.0,0.244507]
[1741878426495,0.00121606,81813.0,81797.0,0.244507]
[1741878426655,0.012224,81802.0,81795.0,0.256738]
[1741878426857,0.244501,81799.0,81795.0,0.012225]
[1741878427062,0.00498158,81798.0,81796.0,0.256732]
[1741878427462,0.24449,81803.0,81797.0,0.256729]
[1741878427666,0.012224,81804.0,81798.0,0.256727]
[1741878427868,0.256698,81808.0,81800.0,0.012224]
[1741878428090,0.256679,81814.0,81807.0,0.012223]
[1741878428287,0.244456,81814.0,81808.0,0.012223]
[1741878428499,0.012224,81804.0,81795.0,0.012225]
[1741878428703,0.012224,81801.0,81796.0,0.256732]
[1741878428860,0.256678,81814.0,81808.0,0.012223]
[1741878429060,0.01914716,81815.0,81814.0,0.256678]
[1741878429475,0.02189085,81815.0,81808.0,0.256695]
[1741878429674,0.012222,81813.0,81807.0,0.002]
[1741878429868,0.012223,81808.0,81807.0,0.002]
[1741878430069,0.012224,81806.0,81797.0,0.25673]